lending/lending_fUSD_20240111
["ID","MTS","AMOUNT","RATE_DAILY","PERIOD"]
[311189269,1704976288525,-500.0,0.0004,4]
[311189270,1704976288535,-623.04,0.0004,4]
[311189271,1704976288544,-500.0,0.0004,4]
[311189272,1704976288553,-506.90613835,0.0004,4]
[311189273,1704976288563,-500.0,0.0004,4]
[311189274,1704976288573,-500.0,0.0004,4]
[311189275,1704976288583,-500.0,0.0004,4]
[311189276,1704976288592,-500.0,0.0004,4]
[311189277,1704976288602,-500.0,0.0004,4]
[311189278,1704976288612,-500.0,0.0004,4]
[311189279,1704976288621,-500.0,0.0004,3]
[311189280,1704976288631,-479.79,0.0004,4]
[311189281,1704976288640,-500.0,0.0004,4]
[311189282,1704976288649,-484.23,0.0004,4]
[311189283,1704976288659,-500.0,0.0004,4]
[311189284,1704976288668,-530.06645842,0.0004,4]
[311189285,1704976288678,-500.0,0.0004,2]
[311189286,1704976288687,-539.25,0.0004,4]
[311189287,1704976288697,-508.2309198,0.0004,4]
[311189288,1704976288708,-500.0,0.0004,4]
[311189289,1704976288718,-500.0,0.0004,4]
[311189290,1704976288731,-500.0,0.0004,4]
[311189291,1704976288741,-500.0,0.0004,4]
[311189292,1704976288750,-500.0,0.0004,4]
[311189293,1704976288760,-500.0,0.0004,4]
[311189294,1704976288771,-580.47,0.0004,4]
[311189295,1704976288780,-500.0,0.0004,4]
[311189296,1704976288789,-500.0,0.0004,4]
[311189297,1704976288799,-500.0,0.0004,4]
[311189298,1704976288808,-500.0,0.0004,4]
[311189299,1704976288817,-500.0,0.0004,4]
[311189300,1704976288826,-500.0,0.0004,4]
[311189301,1704976288835,-500.0,0.0004,4]
[311189302,1704976288845,-500.0,0.0004,4]
[311189303,1704976288854,-500.0,0.0004,4]
[311189304,1704976288862,-500.0,0.0004,4]
[311189305,1704976288872,-500.0,0.0004,4]
[311189306,1704976288881,-500.0,0.0004,4]
[311189307,1704976288890,-500.0,0.0004,4]
[311189308,1704976288900,-820.43,0.0004,4]
[311189309,1704976288909,-500.0,0.0004,4]
[311189310,1704976288918,-500.0,0.0004,4]
[311189311,1704976288927,-500.0,0.0004,4]
[311189312,1704976288936,-500.0,0.0004,4]
[311189313,1704976288946,-500.0,0.0004,4]
[311189314,1704976288955,-500.0,0.0004,4]
[311189315,1704976288964,-570.16,0.0004,4]
[311189316,1704976288975,-2269.43,0.0004,4]
[311189317,1704976288984,-1008.72,0.0004,4]
[311189318,1704976288993,-617.38,0.0004,4]
[311189319,1704976289001,-500.0,0.0004,4]
[311189320,1704976289011,-500.0,0.0004,4]
[311189321,1704976289021,-500.0,0.0004,4]
[311189322,1704976289030,-500.0,0.0004,4]
[311189323,1704976289039,-500.0,0.0004,4]
[311189324,1704976289047,-500.0,0.0004,4]
[311189325,1704976289056,-500.0,0.0004,4]
[311189326,1704976289065,-500.0,0.0004,4]
[311189327,1704976289074,-500.0,0.0004,4]
[311189328,1704976289083,-500.0,0.0004,4]
[311189329,1704976289092,-614.43,0.0004,4]
[311189330,1704976289101,-500.0,0.0004,4]
[311189331,1704976289110,-500.0,0.0004,4]
[311189332,1704976289119,-500.0,0.0004,4]
[311189333,1704976289129,-500.0,0.0004,4]
[311189334,1704976289138,-500.0,0.0004,4]
[311189335,1704976289147,-500.0,0.0004,4]
[311189336,1704976289156,-500.0,0.0004,4]
[311189337,1704976289165,-500.0,0.0004,4]
[311189338,1704976289174,-500.0,0.0004,4]
[311189339,1704976289183,-500.0,0.0004,4]
[311189340,1704976289192,-500.0,0.0004,4]
[311189341,1704976289201,-497.50579953,0.0004,4]
[311189342,1704976289210,-500.0,0.0004,4]
[311189343,1704976289221,-505.85777276,0.0004,4]
[311189344,1704976289229,-500.0,0.0004,4]
[311189345,1704976289238,-500.0,0.0004,4]
[311189346,1704976289248,-500.0,0.0004,4]
[311189347,1704976289257,-500.0,0.0004,4]
[311189348,1704976289266,-500.0,0.0004,4]
[311189349,1704976289275,-506.00027585,0.0004,4]
[311189350,1704976289284,-835.14,0.0004,4]
[311189351,1704976289293,-312.63,0.0004,4]
[311189352,1704976289303,-500.0,0.0004,4]
[311189353,1704976289313,-500.0,0.0004,4]
[311189354,1704976289322,-576.25,0.0004,4]
[311189355,1704976289331,-500.0,0.0004,4]
[311189356,1704976289341,-505.41090431,0.0004,4]
[311189357,1704976289350,-500.0,0.0004,4]
[311189358,1704976289359,-500.0,0.0004,4]
[311189359,1704976289368,-512.70611397,0.0004,4]
[311189360,1704976289377,-500.0,0.0004,4]
[311189361,1704976289387,-500.0,0.0004,4]
[311189362,1704976289396,-505.07308341,0.0004,4]
[311189363,1704976289405,-500.0,0.0004,4]
[311189364,1704976289414,-513.4077277,0.0004,4]
[311189365,1704976289423,-500.0,0.0004,4]
[311189366,1704976289433,-500.0,0.0004,4]
[311189367,1704976289442,-505.45911291,0.0004,4]
[311189368,1704976289451,-500.0,0.0004,4]
[311189369,1704976289460,-1146.18,0.0004,4]
[311189370,1704976289471,-500.0,0.0004,4]
[311189371,1704976289480,-500.0,0.0004,4]
[311189372,1704976289488,-500.0,0.0004,4]
[311189373,1704976289497,-500.0,0.0004,4]
[311189374,1704976289507,-500.0,0.0004,4]
[311189375,1704976289516,-280.008321,0.0004,7]
[311189376,1704976289525,-280.008321,0.0004,7]
[311189377,1704976289535,-500.0,0.0004,4]
[311189378,1704976289545,-500.0,0.0004,4]
[311189379,1704976289554,-280.008321,0.0004,7]
[311189380,1704976289563,-500.0,0.0004,4]
[311189381,1704976289572,-280.008321,0.0004,7]
[311189382,1704976289581,-534.9,0.0004,4]
[311189383,1704976289590,-509.23168559,0.0004,4]
[311189384,1704976289600,-500.0,0.0004,4]
[311189385,1704976289609,-510.62824872,0.0004,4]
[311189386,1704976289618,-592.44,0.0004,4]
[311189387,1704976289628,-642.16,0.0004,4]
[311189388,1704976289637,-775.91,0.0004,4]
[311189389,1704976289646,-269.45863961,0.0004,4]
[311189390,1704976289656,-10763.91,0.0004,4]
[311189391,1704976289665,-500.0,0.0004,4]
[311189392,1704976289675,-519.35,0.0004,4]
[311189393,1704976289684,-500.0,0.0004,4]
[311189394,1704976289694,-500.0,0.0004,4]
[311189395,1704976289703,-500.0,0.0004,4]
[311189396,1704976289713,-500.0,0.0004,4]
[311189397,1704976289722,-776.104603,0.0004,7]
[311189398,1704976289733,-776.104603,0.0004,7]
[311189399,1704976289743,-500.0,0.0004,4]
[311189400,1704976289753,-500.0,0.0004,4]
[311189401,1704976289762,-500.0,0.0004,4]
[311189402,1704976289773,-500.0,0.0004,4]
[311189403,1704976289782,-500.0,0.0004,4]
[311189404,1704976289792,-776.104603,0.0004,7]
[311189405,1704976289801,-776.104603,0.0004,7]
[311189406,1704976289810,-500.0,0.0004,4]
[311189407,1704976289820,-500.0,0.0004,4]
[311189408,1704976289830,-255.0,0.0004,12]
[311189409,1704976289840,-500.0,0.0004,4]
[311189410,1704976289849,-500.0,0.0004,4]
[311189411,1704976289858,-527.34,0.0004,4]
[311189412,1704976289867,-500.0,0.0004,4]
[311189413,1704976289877,-500.0,0.0004,4]
[311189414,1704976289886,-500.0,0.0004,4]
[311189415,1704976289895,-500.0,0.0004,4]
[311189416,1704976289904,-500.0,0.0004,4]
[311189417,1704976289913,-509.60652194,0.0004,4]
[311189418,1704976289923,-500.0,0.0004,4]
[311189419,1704976289933,-500.0,0.0004,4]
[311189420,1704976289942,-500.0,0.0004,4]
[311189421,1704976289951,-669.89,0.0004,4]
[311189422,1704976289961,-1318.87,0.0004,4]
[311189423,1704976289971,-500.0,0.0004,4]
[311189424,1704976289981,-500.0,0.0004,4]
[311189425,1704976289990,-519.11364236,0.0004,4]
[311189426,1704976289999,-500.0,0.0004,4]
[311189427,1704976290008,-500.0,0.0004,4]
[311189428,1704976290018,-500.0,0.0004,4]
[311189429,1704976290027,-500.0,0.0004,4]
[311189430,1704976290036,-506.63682799,0.0004,4]
[311189431,1704976290046,-500.0,0.0004,4]
[311189432,1704976290055,-2838.19,0.0004,4]
[311189433,1704976290064,-500.0,0.0004,4]
[311189434,1704976290073,-509.45693545,0.0004,4]
[311189435,1704976290082,-155.67360872,0.0004,4]
[311189436,1704976290090,-441.24,0.0004,4]
[311189437,1704976290099,-3866.26,0.0004,4]
[311189438,1704976290109,-500.0,0.0004,4]
[311189439,1704976290118,-500.0,0.0004,4]
[311189440,1704976290128,-500.0,0.0004,4]
[311189441,1704976290137,-1706.31,0.0004,4]
[311189442,1704976290146,-500.0,0.0004,4]
[311189443,1704976290155,-500.0,0.0004,4]
[311189444,1704976290165,-686.13,0.0004,4]
[311189445,1704976290174,-500.0,0.0004,4]
[311189446,1704976290184,-500.0,0.0004,4]
[311189447,1704976290193,-500.0,0.0004,4]
[311189448,1704976290202,-653.27,0.0004,4]
[311189449,1704976290212,-500.0,0.0004,4]
[311189450,1704976290222,-500.0,0.0004,4]
[311189451,1704976290231,-505.2456574,0.0004,4]
[311189452,1704976290240,-500.0,0.0004,4]
[311189453,1704976290249,-500.0,0.0004,4]
[311189454,1704976290259,-509.29153633,0.0004,4]
[311189455,1704976290268,-798.93,0.0004,4]
[311189456,1704976290277,-154.2,0.0004,4]
[311189457,1704976290287,-500.0,0.0004,4]
[311189458,1704976290296,-500.0,0.0004,4]
[311189459,1704976290305,-500.0,0.0004,4]
[311189460,1704976290315,-500.0,0.0004,4]
[311189461,1704976290324,-500.0,0.0004,4]
[311189462,1704976290333,-500.0,0.0004,4]
[311189463,1704976290342,-651.34,0.0004,4]
[311189464,1704976290351,-500.0,0.0004,4]
[311189465,1704976290359,-500.0,0.0004,4]
[311189466,1704976290369,-500.0,0.0004,4]
[311189467,1704976290518,-500.0,0.0004,4]
[311189468,1704976290527,-500.0,0.0004,4]
[311189469,1704976290537,-500.0,0.0004,4]
[311189470,1704976290547,-500.0,0.0004,4]
[311189471,1704976290556,-422.31,0.0004,4]
[311189472,1704976290566,-503.90241265,0.0004,4]
[311189473,1704976290575,-509.45294938,0.0004,4]
[311189474,1704976290585,-500.0,0.0004,4]
[311189475,1704976290595,-500.0,0.0004,4]
[311189476,1704976290605,-1274.51,0.0004,4]
[311189477,1704976290614,-500.0,0.0004,4]
[311189478,1704976290623,-1040.51,0.0004,4]
[311189479,1704976290633,-500.0,0.0004,4]
[311189480,1704976290642,-500.0,0.0004,4]
[311189481,1704976290652,-500.0,0.0004,4]
[311189482,1704976290661,-500.0,0.0004,4]
[311189483,1704976290671,-500.0,0.0004,4]
[311189484,1704976290680,-512.56283134,0.0004,4]
[311189485,1704976290690,-509.55727691,0.0004,4]
[311189486,1704976290699,-830.69,0.0004,4]
[311189487,1704976290711,-500.0,0.0004,4]
[311189488,1704976290723,-500.0,0.0004,4]
[311189489,1704976290734,-500.0,0.0004,4]
[311189490,1704976290743,-500.0,0.0004,4]
[311189491,1704976290754,-504.9394714,0.0004,4]
[311189492,1704976290763,-604.77,0.0004,4]
[311189493,1704976290772,-500.0,0.0004,4]
[311189494,1704976290781,-507.23901519,0.0004,4]
[311189495,1704976290791,-500.0,0.0004,4]
[311189496,1704976290800,-500.0,0.0004,4]
[311189497,1704976290811,-500.0,0.0004,4]
[311189498,1704976290822,-500.0,0.0004,4]
[311189499,1704976290831,-560.0,0.0004,4]
[311189500,1704976290840,-500.0,0.0004,4]
[311189501,1704976290850,-316.96,0.0004,2]
[311189502,1704976290860,-506.93903358,0.0004,4]
[311189503,1704976290869,-500.0,0.0004,4]
[311189504,1704976290879,-617.96,0.0004,4]
[311189505,1704976290888,-500.0,0.0004,4]
[311189506,1704976290898,-505.35903127,0.0004,4]
[311189507,1704976290907,-500.0,0.0004,4]
[311189508,1704976290917,-500.0,0.0004,4]
[311189509,1704976290927,-507.4361881,0.0004,4]
[311189510,1704976290936,-512.22068196,0.0004,4]
[311189511,1704976290946,-500.0,0.0004,4]
[311189512,1704976290955,-500.0,0.0004,4]
[311189513,1704976290964,-1381.12,0.0004,4]
[311189514,1704976290976,-500.0,0.0004,4]
[311189515,1704976290986,-615.18,0.0004,4]
[311189516,1704976290995,-500.0,0.0004,4]
[311189517,1704976291004,-500.0,0.0004,4]
[311189518,1704976291013,-2350.74,0.0004,4]
[311189519,1704976291023,-513.19951191,0.0004,4]
[311189520,1704976291032,-500.0,0.0004,4]
[311189521,1704976291042,-1299.5,0.0004,4]
[311189522,1704976291051,-500.0,0.0004,4]
[311189523,1704976291061,-500.0,0.0004,4]
[311189524,1704976291070,-500.0,0.0004,4]
[311189525,1704976291080,-741.46,0.0004,4]
[311189526,1704976291089,-500.0,0.0004,4]
[311189527,1704976291098,-510.46536998,0.0004,4]
[311189528,1704976291108,-500.0,0.0004,4]
[311189529,1704976291117,-500.0,0.0004,4]
[311189530,1704976291126,-500.0,0.0004,4]
[311189531,1704976291136,-2199.27,0.0004,4]
[311189532,1704976291145,-500.0,0.0004,4]
[311189533,1704976291155,-758.86,0.0004,4]
[311189534,1704976291164,-1445.54,0.0004,4]
[311189535,1704976291173,-500.0,0.0004,4]
[311189536,1704976291183,-508.95646411,0.0004,4]
[311189537,1704976291192,-500.0,0.0004,4]
[311189538,1704976291202,-508.23163496,0.0004,4]
[311189539,1704976291211,-500.0,0.0004,4]
[311189540,1704976291222,-500.0,0.0004,4]
[311189541,1704976291231,-5930.12308619,0.0004,2]
[311189542,1704976291240,-500.0,0.0004,4]
[311189543,1704976291250,-832.06,0.0004,4]
[311189544,1704976291260,-210.38937704,0.0004,2]
[311189545,1704976291269,-500.0,0.0004,4]
[311189546,1704976291279,-972.63,0.0004,4]
[311189547,1704976291288,-500.0,0.0004,4]
[311189548,1704976291298,-500.0,0.0004,4]
[311189549,1704976291307,-500.0,0.0004,4]
[311189550,1704976291316,-511.43384891,0.0004,4]
[311189551,1704976291326,-500.0,0.0004,4]
[311189552,1704976291335,-505.97211771,0.0004,4]
[311189553,1704976291345,-500.0,0.0004,4]
[311189554,1704976291355,-1716.58,0.0004,4]
[311189555,1704976291365,-500.0,0.0004,4]
[311189556,1704976291374,-664.52,0.0004,4]
[311189557,1704976291384,-500.0,0.0004,4]
[311189558,1704976291393,-500.0,0.0004,4]
[311189559,1704976291402,-500.0,0.0004,4]
[311189560,1704976291412,-500.0,0.0004,4]
[311189561,1704976291421,-512.29309747,0.0004,4]
[311189562,1704976291431,-776.44,0.0004,4]
[311189563,1704976291440,-500.0,0.0004,4]
[311189564,1704976291450,-500.0,0.0004,4]
[311189565,1704976291459,-500.0,0.0004,4]
[311189566,1704976291469,-500.0,0.0004,4]
[311189567,1704976291479,-500.0,0.0004,4]
[311189568,1704976291488,-500.0,0.0004,4]
[311189569,1704976291497,-508.80883857,0.0004,4]
[311189570,1704976291506,-767.24,0.0004,4]
[311189571,1704976291515,-648.46,0.0004,4]
[311189572,1704976291525,-500.0,0.0004,5]
[311189573,1704976291534,-500.0,0.0004,4]
[311189574,1704976291544,-500.0,0.0004,4]
[311189575,1704976291554,-500.0,0.0004,4]
[311189576,1704976291564,-500.0,0.0004,4]
[311189577,1704976291574,-556.27050032,0.0004,4]
[311189578,1704976291584,-500.0,0.0004,4]
[311189579,1704976291593,-500.0,0.0004,4]
[311189580,1704976291603,-500.0,0.0004,4]
[311189581,1704976291612,-537.38,0.0004,4]
[311189582,1704976291621,-500.0,0.0004,4]
[311189583,1704976291631,-513.41616822,0.0004,4]
[311189584,1704976291641,-500.0,0.0004,4]
[311189585,1704976291650,-500.0,0.0004,4]
[311189586,1704976291660,-500.0,0.0004,4]
[311189587,1704976291669,-500.0,0.0004,4]
[311189588,1704976291679,-1019.0907113,0.0004,4]
[311189589,1704976291688,-510.78636537,0.0004,4]
[311189590,1704976291698,-506.44607008,0.0004,4]
[311189591,1704976291709,-500.0,0.0004,4]
[311189592,1704976291719,-1000.0,0.0004,2]
[311189593,1704976291728,-500.0,0.0004,4]
[311189594,1704976291737,-500.0,0.0004,4]
[311189595,1704976291747,-150.0,0.00040011,2]
[311189596,1704976291756,-158.15,0.00040011,2]
[311189597,1704976291777,-150.0,0.00040035,2]
[311189598,1704976291795,-150.0,0.00040041,7]
[311189599,1704976291810,-150.0,0.00040041,7]
[311189600,1704976291826,-150.0,0.00040041,7]
[311189601,1704976291843,-150.0,0.00040041,7]
[311189602,1704976291858,-150.0,0.00040041,7]
[311189603,1704976291873,-150.0,0.00040041,7]
[311189604,1704976291888,-150.0,0.00040041,7]
[311189605,1704976291905,-207.34530056,0.00040041,7]
[311189606,1704976291919,-150.0,0.00040041,7]
[311189607,1704976291936,-1639.78777263,0.00040074,2]
[311189608,1704976291954,-150.23893773,0.00040087,7]
[311189609,1704976291969,-666.40111,0.00040098,6]
[311189610,1704976291985,-150.0,0.00040113,2]
[311189611,1704976292002,-5869.69631105,0.00040137,14]
[311189612,1704976292020,-150.0,0.00040171,2]
[311189613,1704976292034,-1000.0,0.00040204,10]
[311189614,1704976292047,-1000.0,0.00040204,10]
[311189615,1704976292063,-1000.0,0.00040204,10]
[311189616,1704976292079,-150.0,0.00040208,2]
[311189617,1704976292091,-776.64,0.00040272,4]
[311189618,1704976292107,-776.64,0.00040272,4]
[311189619,1704976292120,-776.64,0.00040272,4]
[311189620,1704976292134,-776.64,0.00040272,4]
[311189621,1704976292148,-776.68,0.00040272,4]
[311189622,1704976292162,-241.460575,0.00040273,7]
[311189623,1704976292176,-241.460575,0.00040273,7]
[311189624,1704976292191,-280.008321,0.00040273,7]
[311189625,1704976292204,-280.008327,0.00040273,7]
[311189626,1704976292218,-776.104603,0.00040273,7]
[311189627,1704976292233,-776.104595,0.00040273,7]
[311189628,1704976292247,-500.0,0.00040273,4]
[311189629,1704976292260,-506.77233798,0.00040273,4]
[311189630,1704976292274,-500.0,0.00040273,4]
[311189631,1704976292288,-553.58027694,0.00040273,4]
[311189632,1704976292301,-177.64,0.00040273,4]
[311189633,1704976292315,-224.57391368,0.00040273,4]
[311189634,1704976292330,-506.04032908,0.00040273,4]
[311189635,1704976292343,-500.0,0.00040273,4]
[311189636,1704976292356,-500.0,0.00040273,4]
[311189637,1704976292371,-500.0,0.00040273,4]
[311189638,1704976292384,-596.30453453,0.00040273,4]
[311189639,1704976292398,-500.0,0.00040273,4]
[311189640,1704976292412,-500.0,0.00040273,4]
[311189641,1704976292425,-500.0,0.00040273,4]
[311189642,1704976292439,-510.90718712,0.00040273,4]
[311189643,1704976292452,-514.22967581,0.00040273,4]
[311189644,1704976292465,-503.20674237,0.00040273,4]
[311189645,1704976292480,-509.63319009,0.00040273,4]
[311189646,1704976292494,-500.0,0.00040273,4]
[311189647,1704976292507,-500.0,0.00040273,4]
[311189648,1704976292520,-500.0,0.00040273,4]
[311189649,1704976292534,-500.0,0.00040273,4]
[311189650,1704976292547,-500.0,0.00040273,4]
[311189651,1704976292561,-500.0,0.00040273,4]
[311189652,1704976292575,-500.0,0.00040273,4]
[311189653,1704976292589,-500.0,0.00040273,4]
[311189654,1704976292602,-517.1652845,0.00040273,4]
[311189655,1704976292615,-500.0,0.00040273,4]
[311189656,1704976292629,-500.0,0.00040273,4]
[311189657,1704976292642,-500.0,0.00040273,4]
[311189658,1704976292655,-500.0,0.00040273,4]
[311189659,1704976292669,-573.1,0.00040273,4]
[311189660,1704976292683,-603.59730693,0.00040273,4]
[311189661,1704976292696,-500.0,0.00040273,10]
[311189662,1704976292711,-500.0,0.00040273,4]
[311189663,1704976292727,-500.0,0.00040273,4]
[311189664,1704976292740,-270.43,0.00040273,4]
[311189665,1704976292754,-513.9628297,0.00040273,4]
[311189666,1704976292768,-500.0,0.00040273,4]
[311189667,1704976292782,-507.99390645,0.00040273,4]
[311189668,1704976292796,-500.0,0.00040273,4]
[311189669,1704976292811,-500.0,0.00040273,4]
[311189670,1704976292824,-500.0,0.00040273,4]
[311189671,1704976292837,-500.0,0.00040273,4]
[311189672,1704976292849,-500.0,0.00040273,4]
[311189673,1704976292863,-500.0,0.00040273,4]
[311189674,1704976292876,-328.6,0.00040273,4]
[311189675,1704976292888,-500.0,0.00040273,4]
[311189676,1704976292902,-500.0,0.00040273,4]
[311189677,1704976292914,-500.0,0.00040273,4]
[311189678,1704976292926,-161.98,0.00040273,4]
[311189679,1704976292940,-500.0,0.00040273,4]
[311189680,1704976292952,-162.37,0.00040273,4]
[311189681,1704976292965,-500.0,0.00040273,4]
[311189682,1704976292978,-500.0,0.00040273,4]
[311189683,1704976292990,-499.2752256,0.00040273,4]
[311189684,1704976293002,-500.0,0.00040273,4]
[311189685,1704976293015,-500.0,0.00040273,4]
[311189686,1704976293028,-500.0,0.00040273,4]
[311189687,1704976293041,-500.0,0.00040273,4]
[311189688,1704976293053,-360.66174818,0.00040273,4]
[311189689,1704976293066,-500.0,0.00040273,4]
[311189690,1704976293078,-273.49,0.00040273,4]
[311189691,1704976293092,-500.69,0.00040273,4]
[311189692,1704976293105,-510.4,0.00040273,4]
[311189693,1704976293118,-500.0,0.00040273,4]
[311189694,1704976293130,-523.04,0.00040273,4]
[311189695,1704976293143,-500.0,0.00040273,4]
[311189696,1704976293156,-577.55,0.00040273,4]
[311189697,1704976293168,-500.0,0.00040273,4]
[311189698,1704976293181,-368.01,0.00040273,4]
[311189699,1704976293193,-500.0,0.00040273,4]
[311189700,1704976293206,-500.0,0.00040273,4]
[311189701,1704976293220,-500.0,0.00040273,4]
[311189702,1704976293233,-500.0,0.00040273,4]
[311189703,1704976293246,-500.0,0.00040273,4]
[311189704,1704976293259,-500.0,0.00040273,4]
[311189705,1704976293274,-632.81,0.00040273,4]
[311189706,1704976293286,-500.0,0.00040273,4]
[311189707,1704976293303,-500.0,0.00040273,4]
[311189708,1704976293318,-500.0,0.00040273,4]
[311189709,1704976293332,-158.52054339,0.00040273,4]
[311189710,1704976293346,-304.24,0.00040273,4]
[311189711,1704976293360,-536.25,0.00040273,4]
[311189712,1704976293374,-500.0,0.00040273,4]
[311189713,1704976293388,-642.48,0.00040273,4]
[311189714,1704976293403,-500.0,0.00040273,4]
[311189715,1704976293416,-500.0,0.00040273,4]
[311189716,1704976293430,-216.21803763,0.00040273,4]
[311189717,1704976293442,-500.0,0.00040273,4]
[311189718,1704976293455,-500.0,0.00040273,4]
[311189719,1704976293468,-500.0,0.00040273,4]
[311189720,1704976293482,-509.28854252,0.00040273,4]
[311189721,1704976293495,-500.0,0.00040273,4]
[311189722,1704976293509,-500.0,0.00040273,4]
[311189723,1704976293524,-500.0,0.00040273,4]
[311189724,1704976293539,-511.24465591,0.00040273,4]
[311189725,1704976293552,-500.0,0.00040273,4]
[311189726,1704976293813,-418.96,0.00040273,4]
[311189727,1704976293825,-500.0,0.00040273,4]
[311189728,1704976293833,-500.0,0.00040273,4]
[311189729,1704976293842,-443.36,0.00040273,4]
[311189730,1704976293851,-221.84,0.00040273,4]
[311189731,1704976293861,-500.0,0.00040273,4]
[311189732,1704976293870,-500.0,0.00040273,4]
[311189733,1704976293879,-505.72035885,0.00040273,4]
[311189734,1704976293888,-500.0,0.00040273,4]
[311189735,1704976293897,-500.0,0.00040273,4]
[311189736,1704976293906,-500.0,0.00040273,4]
[311189737,1704976293915,-514.41034879,0.00040273,4]
[311189738,1704976293925,-500.0,0.00040273,4]
[311189739,1704976293934,-500.0,0.00040273,4]
[311189740,1704976293944,-211.4,0.00040273,4]
[311189741,1704976293953,-500.0,0.00040273,4]
[311189742,1704976293962,-500.0,0.00040273,4]
[311189743,1704976293973,-516.67267508,0.00040273,4]
[311189744,1704976293982,-500.0,0.00040273,4]
[311189745,1704976293990,-500.0,0.00040273,4]
[311189746,1704976293999,-500.0,0.00040273,4]
[311189747,1704976294009,-500.0,0.00040273,4]
[311189748,1704976294018,-500.0,0.00040273,4]
[311189749,1704976294027,-362.12568657,0.00040273,4]
[311189750,1704976294036,-427.31091002,0.00040273,4]
[311189751,1704976294045,-500.0,0.00040273,4]
[311189752,1704976294054,-245.12,0.00040273,4]
[311189753,1704976294064,-527.13817034,0.00040273,4]
[311189754,1704976294073,-530.10755386,0.00040273,4]
[311189755,1704976294082,-500.0,0.00040273,4]
[311189756,1704976294091,-500.0,0.00040273,4]
[311189757,1704976294101,-500.0,0.00040273,4]
[311189758,1704976294110,-500.0,0.00040273,4]
[311189759,1704976294120,-373.11,0.00040273,4]
[311189760,1704976294130,-500.0,0.00040273,4]
[311189761,1704976294139,-171.44,0.00040273,4]
[311189762,1704976294149,-500.0,0.00040273,4]
[311189763,1704976294158,-500.0,0.00040273,4]
[311189764,1704976294167,-500.0,0.00040273,4]
[311189765,1704976294177,-500.0,0.00040273,4]
[311189766,1704976294186,-500.0,0.00040273,4]
[311189767,1704976294195,-500.0,0.00040273,4]
[311189768,1704976294205,-500.0,0.00040273,4]